bitfinex/quotes_ETHUSD_20241215
["timestamp","ask_amount","ask_price","bid_price","bid_amount"]
[1734284583597,2.21250565,3909.4,3909.1,1.00344567]
[1734284583805,3.6281709,3909.5,3909.1,1.00344567]
[1734284584004,2.2125075,3909.4,3909.1,1.00344567]
[1734284584173,3.6281709,3909.5,3909.1,1.00344567]
[1734284584379,2.2125269,3909.4,3909.1,1.00344567]
[1734284584563,2.55787,3909.5,3909.1,1.00344567]
[1734284587019,4.77134817,3909.4,3909.0,0.7669]
[1734284587300,0.88538429,3909.3,3909.0,0.7669]
[1734284588005,2.55798,3909.4,3909.0,0.7669]
[1734284592906,3.6281109,3909.6,3909.1,1.00344567]
[1734284593101,0.88532787,3909.5,3909.2,0.7669]
[1734284593423,0.88532787,3909.5,3909.4,1.00344567]
[1734284593603,2.67679198,3910.2,3909.4,1.00344567]
[1734284593604,1.0703009,3909.9,3909.5,0.7669]
[1734284593788,1.60545136,3910.1,3909.5,0.7669]
[1734284593789,1.0703009,3910.1,3909.7,1.00344567]
[1734284593984,3.28336178,3910.1,3909.7,1.00344567]
[1734284594190,3.6277709,3910.2,3909.8,0.7669]
[1734284594390,2.55747,3910.2,3909.8,0.7669]
[1734284595595,2.89416814,3910.6,3910.1,0.7669]
[1734284595596,1.0703009,3910.6,3910.1,0.7669]
[1734284595797,1.0703009,3910.6,3910.0,1.00344567]
[1734284595798,1.0703009,3910.7,3910.4,0.7669]
[1734284596106,2.55686,3911.1,3910.7,0.7669]
[1734284596302,1.0703009,3911.4,3910.7,0.7669]
[1734284596622,3.75875099,3911.3,3910.7,0.7669]
[1734284596793,2.55678,3911.2,3910.7,0.7669]
[1734284597138,1.0703009,3911.5,3910.7,0.7669]
[1734284597341,0.88412359,3911.4,3910.7,0.7669]
[1734284597520,1.58153463,3911.6,3910.7,0.7669]
[1734284597701,2.8598716,3911.5,3910.7,0.7669]
[1734284597915,0.6507766,3911.5,3910.7,0.7669]
[1734284598202,0.6507766,3911.5,3909.8,0.17703457]
[1734284598203,2.55689,3911.0,3910.5,0.8235]
[1734284601016,3.2073566,3911.5,3910.5,0.8235]
[1734284601017,2.55704,3910.8,3910.5,0.8235]
[1734284601336,0.255704,3910.7,3910.5,0.8235]
[1734284601637,2.5571,3910.7,3910.5,0.8235]
[1734284601816,0.7766,3911.1,3910.5,0.8235]
[1734284602019,2.55694,3911.0,3910.5,0.8235]
[1734284602194,2.55695,3910.9,3910.5,0.8235]
[1734284604510,0.7766,3911.1,3910.5,0.8235]
[1734284604719,2.55702,3910.8,3910.5,0.8235]
[1734284606636,2.55702,3910.8,3910.5,1.82694567]
[1734284606806,2.55702,3910.8,3910.5,1.00344567]
[1734284608246,2.55682,3911.1,3910.2,1.82694567]
[1734284608443,2.55721,3910.6,3910.2,1.82694567]
[1734284608646,2.5572,3910.6,3910.2,1.82694567]
[1734284617960,2.55701,3910.9,3910.2,1.82694567]
[1734284618166,2.55703,3910.8,3910.5,1.00344567]
[1734284618379,2.55703,3910.8,3910.6,0.8207]
[1734284618572,2.55682,3911.2,3910.6,0.8207]
[1734284618724,2.55682,3911.2,3910.5,1.00344567]
[1734284618725,2.55665,3911.4,3911.1,1.00344567]
[1734284618923,3.35738,3912.0,3911.1,1.00344567]
[1734284618924,1.0703009,3911.8,3911.2,0.8207]
[1734284619124,2.55652,3911.6,3911.2,0.8207]
[1734284620968,2.55658,3911.5,3911.2,0.8207]
[1734284624224,0.60331323,3911.7,3911.1,1.00344567]
[1734284624427,2.5566,3911.5,3911.1,1.00344567]
[1734284625063,2.5566,3911.5,3911.0,0.8207]
[1734284625266,2.55674,3911.3,3911.0,0.8207]
[1734284626130,1.0703009,3912.3,3911.1,2.5568]
[1734284626385,3.6262909,3912.4,3911.7,0.8207]
[1734284626528,3.191699,3912.4,3911.7,0.8207]
[1734284627158,3.191699,3912.4,3911.9,1.00344567]
[1734284628370,0.52223352,3912.6,3911.9,1.00344567]
[1734284628536,2.55584,3912.7,3912.0,0.8207]
[1734284629344,3.07497916,3912.9,3912.3,0.8207]
[1734284631273,2.55574,3912.8,3912.3,0.8207]
[1734284633092,2.55579,3912.7,3912.3,0.8207]
[1734284633848,0.8011,3912.6,3911.1,0.8207]
[1734284634084,0.8011,3912.6,3911.8,0.8207]
[1734284634085,2.55608,3912.3,3911.8,0.8207]
[1734284634398,0.8011,3912.6,3911.8,0.8207]
[1734284634690,2.55604,3912.3,3912.0,1.00344567]
[1734284636415,0.255604,3912.2,3911.8,0.8207]
[1734284636544,2.55585,3912.6,3911.8,0.8207]
[1734284636743,2.55591,3912.5,3911.8,0.8207]
[1734284636983,2.55585,3912.6,3911.8,0.8207]
[1734284637187,2.5561,3912.3,3911.8,0.8207]
[1734284637689,3.067295,3912.3,3911.8,0.8207]
[1734284638087,0.511195,3912.3,3911.8,0.8207]
[1734284638252,0.511195,3912.3,3910.7,0.1548854]
[1734284638253,2.55588,3912.6,3912.1,0.7677]
[1734284640698,0.30751092,3912.7,3912.1,0.7677]
[1734284640699,2.55591,3912.5,3912.1,0.7677]
[1734284640864,2.55584,3912.6,3912.1,0.7677]
[1734284641078,0.30751092,3912.7,3912.1,0.7677]
[1734284641249,2.5561,3912.2,3911.8,0.7677]
[1734284642247,1.21045318,3912.6,3911.8,0.7677]
[1734284642494,2.55623,3912.0,3911.8,0.7677]
[1734284643262,2.28075408,3912.6,3911.8,0.7677]
[1734284643468,2.556,3912.4,3911.8,0.7677]
[1734284643676,0.37664532,3912.3,3911.8,0.7677]
[1734284643880,2.5561,3912.2,3911.8,0.7677]
[1734284645189,0.37664532,3912.3,3911.8,0.7677]
[1734284646082,2.93269532,3912.3,3911.8,0.7677]
[1734284649970,0.37664532,3912.3,3911.8,0.7677]
[1734284650304,1.32943387,3913.2,3912.1,0.8067]
[1734284650457,2.55535,3913.4,3912.5,0.8067]
[1734284651354,2.55541,3913.3,3912.5,0.8067]
[1734284651594,0.38802431,3913.2,3912.5,0.8067]
[1734284652372,2.55546,3913.2,3912.5,0.8067]
[1734284652802,1.32483308,3913.5,3912.5,0.8067]
[1734284653005,2.55545,3913.2,3912.5,0.8067]
[1734284653659,1.32483308,3913.5,3912.5,0.8067]
[1734284653863,2.55548,3913.2,3912.5,0.8067]
[1734284654195,2.94351131,3913.2,3912.5,0.8067]
[1734284658808,0.38803131,3913.2,3912.5,0.8067]
[1734284658959,0.51503308,3913.5,3912.5,0.8067]
[1734284659163,2.55533,3913.4,3912.5,0.8067]
[1734284659398,2.55539,3913.3,3912.5,0.8067]
[1734284660128,2.55559,3913.0,3912.1,0.7506]
[1734284660266,0.338789,3912.9,3912.1,0.7506]
[1734284662665,2.894439,3912.9,3912.1,0.7506]
[1734284664716,0.338789,3912.9,3912.1,0.7506]
[1734284665008,2.55572,3912.8,3912.1,0.7506]
[1734284665768,0.338789,3912.9,3912.1,0.7506]
[1734284665769,2.55578,3912.7,3912.1,0.7506]
[1734284665987,0.2894569,3912.6,3912.1,0.7506]
[1734284666421,2.55599,3912.4,3912.1,0.7506]
[1734284667094,2.55599,3912.4,3911.8,0.7506]
[1734284668064,0.8842995,3912.3,3911.8,0.7506]
[1734284668886,0.8842995,3912.3,3911.7,1.00344567]
[1734284669064,1.0703009,3912.5,3911.7,1.00344567]
[1734284669274,0.60638923,3912.4,3911.7,1.00344567]
[1734284669470,3.88793451,3912.4,3911.7,1.00344567]
[1734284669670,0.88449775,3912.3,3911.7,1.00344567]
[1734284670175,0.88449775,3912.3,3911.4,1.00344567]
[1734284670485,2.21196391,3912.3,3911.4,1.00344567]
[1734284670700,3.01697145,3912.3,3911.4,1.00344567]
[1734284670868,1.0703009,3912.9,3912.0,1.00344567]
[1734284671068,0.88487274,3912.9,3912.4,1.00344567]
[1734284671313,1.0703009,3913.0,3912.4,1.00344567]
[1734284671522,0.88511385,3912.9,3912.1,1.00344567]
[1734284671670,0.32830855,3912.8,3912.1,1.00344567]
[1734284671875,0.32830855,3912.8,3912.2,0.7506]
[1734284672116,0.32830855,3912.8,3912.2,1.75404567]
[1734284672721,1.0703009,3913.0,3912.5,1.00344567]
[1734284672869,0.88520854,3912.9,3912.5,1.00344567]
[1734284673277,1.0703009,3913.0,3912.5,1.00344567]
[1734284673482,0.88523131,3912.9,3912.6,0.7506]
[1734284675520,0.88527168,3912.8,3912.6,0.7506]
[1734284675720,1.0703009,3913.0,3912.6,0.7506]
[1734284676026,2.21315431,3912.9,3912.6,0.7506]
[1734284676314,0.88525225,3912.8,3912.6,0.7506]
[1734284676516,1.59033356,3913.0,3912.6,0.7506]
[1734284676675,2.2131068,3912.9,3912.6,0.7506]
[1734284676872,0.88524272,3912.8,3912.6,0.7506]
[1734284677087,1.59033356,3913.0,3912.6,0.7506]
[1734284677303,2.21310695,3912.9,3912.6,0.7506]
[1734284678288,1.59033356,3913.0,3912.6,0.7506]
[1734284678623,0.88517479,3912.9,3912.6,0.7506]
[1734284679813,1.60545136,3913.2,3912.6,0.7506]
[1734284679992,2.21286616,3913.1,3912.6,0.7506]
[1734284680179,2.21286616,3913.0,3912.6,0.7506]
[1734284680387,0.88514646,3912.9,3912.6,0.7506]
[1734284680587,1.60545136,3913.2,3912.6,0.7506]
[1734284680820,2.21285241,3913.1,3912.6,0.7506]
[1734284681023,2.21285241,3913.0,3912.6,0.7506]
[1734284681328,0.88514096,3912.9,3912.6,0.7506]
[1734284681508,1.60545136,3913.2,3912.6,0.7506]
[1734284681708,2.2128367,3913.1,3912.6,0.7506]
[1734284681878,2.2128367,3913.0,3912.6,0.7506]
[1734284682077,0.88513468,3912.9,3912.6,0.7506]
[1734284682325,1.60545136,3913.2,3912.6,0.7506]
[1734284682525,2.21285255,3913.1,3912.6,0.7506]
[1734284682726,1.60545136,3913.2,3912.6,0.7506]
[1734284682727,2.21285255,3913.0,3912.6,0.7506]
[1734284683022,0.88514102,3912.9,3912.6,0.7506]
[1734284683229,1.60545136,3913.2,3912.6,0.7506]
[1734284683394,2.21292543,3913.1,3912.6,0.7506]
[1734284683726,2.21292543,3913.0,3912.6,0.7506]
[1734284683924,0.88517017,3912.9,3912.6,0.7506]
[1734284684082,1.60545136,3913.2,3912.6,0.7506]
[1734284684282,2.21292483,3913.1,3912.6,0.7506]
[1734284684606,2.21292483,3913.0,3912.6,0.7506]
[1734284684950,0.88516993,3912.9,3912.6,0.7506]
[1734284685157,1.60545136,3913.2,3912.6,0.7506]
[1734284685453,3.02011252,3913.1,3912.6,0.7506]
[1734284685663,2.21294067,3913.0,3912.6,0.7506]
[1734284685807,0.88517627,3912.9,3912.6,0.7506]
[1734284686006,1.87767067,3913.1,3912.6,0.7506]
[1734284686246,2.21292105,3913.0,3912.6,0.7506]
[1734284686447,0.88517453,3912.9,3912.6,0.7506]
[1734284686651,1.87767067,3913.1,3912.6,0.7506]
[1734284686949,2.21293608,3913.0,3912.6,0.7506]
[1734284687148,0.88517443,3912.9,3912.6,0.7506]
[1734284687357,1.07049882,3913.0,3912.6,0.7506]
[1734284687513,0.88521855,3912.9,3912.6,0.7506]
[1734284689864,1.07049882,3913.0,3912.6,0.7506]
[1734284690017,0.88540062,3912.9,3912.6,0.7506]
[1734284690217,1.07049882,3913.0,3912.6,0.7506]
[1734284690427,0.88549794,3912.9,3912.6,0.7506]
[1734284691356,1.07049882,3913.0,3912.6,0.7506]
[1734284691660,1.07049882,3913.0,3911.9,1.07084849]
[1734284691661,1.00344567,3912.7,3912.0,0.7524]
[1734284691860,0.88556038,3912.9,3912.0,0.7524]
[1734284691861,3.28461485,3912.6,3912.0,0.7524]
[1734284692062,3.28461485,3912.5,3912.0,0.7524]
[1734284692294,0.88564641,3912.4,3912.0,0.7524]
[1734284692447,1.07049882,3912.5,3912.0,0.7524]
[1734284692786,0.88577081,3912.4,3912.0,0.7524]
[1734284692957,1.07049882,3912.5,3912.0,0.7524]
[1734284693159,0.88576958,3912.4,3912.0,0.7524]
[1734284693355,1.32865437,3912.4,3912.0,0.7524]
[1734284693771,0.88587287,3912.3,3912.0,0.7524]
[1734284694079,1.07049882,3912.5,3912.0,0.7524]
[1734284694280,2.21471038,3912.4,3912.0,0.7524]
[1734284694588,0.88588415,3912.3,3912.0,0.7524]
[1734284694885,1.07049882,3912.5,3912.0,0.7524]
[1734284695072,2.21487508,3912.4,3912.0,0.7524]
[1734284695271,0.88595003,3912.3,3912.0,0.7524]
[1734284695474,1.3290536,3912.3,3912.0,0.7524]
[1734284695782,1.07049882,3912.4,3912.0,0.7524]
[1734284695985,2.2150938,3912.3,3912.0,0.7524]
[1734284696194,1.07049882,3912.4,3911.4,1.07084849]
[1734284696195,1.07049882,3912.4,3912.2,1.00344567]
[1734284696395,1.07049882,3912.6,3912.3,0.7524]
[1734284696687,1.07049882,3912.9,3912.3,0.7524]
[1734284696890,2.21474181,3912.8,3912.3,0.7524]
[1734284697103,0.88589672,3912.7,3912.3,0.7524]
[1734284697394,1.07049882,3912.8,3912.3,0.7524]
[1734284697692,3.28528709,3912.7,3912.3,0.7524]
[1734284697847,0.88590468,3912.6,3912.3,0.7524]
[1734284698046,1.07049882,3912.8,3912.3,0.7524]
[1734284698388,2.2148202,3912.7,3912.3,0.7524]
[1734284698685,0.88592808,3912.6,3912.3,0.7524]
[1734284698988,1.07049882,3912.7,3912.3,0.7524]
[1734284699191,0.88594452,3912.6,3912.3,0.7524]
[1734284699363,1.07049882,3912.7,3912.3,0.7524]
[1734284699564,2.21487602,3912.6,3912.3,0.7524]
[1734284699812,1.07049882,3912.7,3912.3,0.7524]
[1734284700147,0.88594716,3912.6,3912.3,0.7524]
[1734284700367,1.07049882,3912.7,3912.3,0.7524]
[1734284700645,2.6578237,3915.0,3912.5,0.7776]
[1734284700646,1.07049882,3913.0,3912.5,0.7776]
[1734284700944,1.60545136,3913.2,3912.5,0.7776]
[1734284700945,0.88584584,3912.9,3912.5,0.7776]
[1734284701151,1.07049882,3913.1,3912.5,0.7776]
[1734284701328,2.21456358,3913.0,3912.5,0.7776]
[1734284701528,1.07049882,3913.1,3912.5,0.7776]
[1734284701746,0.88581568,3913.0,3912.5,0.7776]
[1734284701898,0.88581568,3912.9,3912.5,0.7776]
[1734284702101,1.07049882,3913.1,3912.5,0.7776]
[1734284702397,0.88583467,3913.0,3912.5,0.7776]
[1734284702757,0.88583467,3912.9,3912.5,0.7776]
[1734284703046,1.07049882,3913.1,3912.5,0.7776]
[1734284703202,0.88581735,3913.0,3912.5,0.7776]
[1734284703435,0.88579979,3912.9,3912.5,0.7776]
[1734284703627,1.07049882,3913.1,3912.5,0.7776]
[1734284703826,0.88580153,3913.0,3912.5,0.7776]
[1734284704334,1.07049882,3913.1,3912.5,0.7776]
[1734284704659,0.88576636,3913.0,3912.5,0.7776]
[1734284706481,1.07049882,3913.2,3912.5,0.7776]
[1734284706637,0.88572191,3913.1,3912.5,0.7776]
[1734284706838,0.88572191,3913.0,3912.5,0.7776]
[1734284707084,1.07049882,3913.2,3912.5,0.7776]
[1734284707393,0.88572021,3913.1,3912.5,0.7776]
[1734284707543,0.88572021,3913.0,3912.5,0.7776]
[1734284708074,1.07049882,3913.2,3912.5,0.7776]
[1734284708372,0.88570408,3913.1,3912.5,0.7776]
[1734284708596,0.88570408,3913.0,3912.5,0.7776]
[1734284708745,1.07049882,3913.1,3912.5,0.7776]
[1734284708954,3.55232107,3913.0,3912.5,0.7776]
[1734284709135,2.21422723,3912.9,3912.5,0.7776]
[1734284709333,2.21422723,3912.8,3912.5,0.7776]
[1734284709534,1.07049882,3913.0,3912.5,0.7776]
[1734284709773,0.88573651,3912.9,3912.5,0.7776]
[1734284709978,0.88573651,3912.8,3912.5,0.7776]
[1734284710173,1.07049882,3913.0,3912.5,0.7776]
[1734284710495,0.88570503,3912.9,3912.5,0.7776]
[1734284710778,1.07049882,3913.0,3912.5,0.7776]
[1734284711084,7.07179548,3912.9,3912.2,0.7776]
[1734284711297,2.21429441,3912.8,3912.2,0.7776]
[1734284711947,4.85750107,3912.9,3912.2,0.7776]
[1734284711948,0.88571776,3912.7,3912.2,0.7776]
[1734284712287,0.88578104,3912.6,3912.2,0.7776]
[1734284712429,1.71679406,3912.8,3912.2,0.7776]
[1734284712636,5.84076939,3912.7,3912.2,0.7776]
[1734284712832,0.88579623,3912.6,3912.2,0.7776]
[1734284713133,1.71679406,3912.8,3912.2,0.7776]
[1734284713343,2.2144814,3912.7,3912.2,0.7776]
[1734284714128,1.71679406,3912.8,3912.2,0.7776]
[1734284714333,2.21469795,3912.7,3912.2,0.7776]
[1734284714575,0.88587918,3912.6,3912.2,0.7776]
[1734284714733,1.07049882,3912.8,3912.2,0.7776]
[1734284714930,2.21506796,3912.7,3912.2,0.7776]
[1734284715136,0.88602718,3912.6,3912.2,0.7776]
[1734284715336,1.07049882,3912.7,3912.2,0.7776]
[1734284715636,0.88618316,3912.6,3912.2,0.7776]
[1734284715946,1.07049882,3912.7,3912.2,0.7776]
[1734284716286,2.2154594,3912.6,3912.2,0.7776]
[1734284716490,1.07049882,3912.7,3912.2,0.7776]
[1734284716779,2.215923,3912.6,3912.2,0.7776]
[1734284716953,0.88636909,3912.5,3912.2,0.7776]
[1734284717139,1.07049882,3912.7,3912.2,0.7776]
[1734284717334,2.21592705,3912.6,3912.2,0.7776]
[1734284717682,1.07049882,3912.7,3912.2,0.7776]
[1734284717867,2.21587872,3912.6,3912.2,0.7776]
[1734284718068,1.07049882,3912.7,3912.2,0.7776]
[1734284718263,2.21589365,3912.6,3912.2,0.7776]
[1734284718448,1.07049882,3912.7,3912.2,0.7776]
[1734284718655,2.21586293,3912.6,3912.2,0.7776]
[1734284718837,1.07049882,3912.7,3912.2,1.78104567]
[1734284719044,1.07049882,3912.8,3912.4,0.8014]
[1734284719297,0.88629933,3912.7,3912.4,0.8014]
[1734284719585,1.07049882,3912.9,3912.4,0.8014]
[1734284719741,0.88629433,3912.8,3912.4,0.8014]
[1734284719943,1.07049882,3912.9,3912.4,0.8014]
[1734284720168,0.88629186,3912.8,3912.4,1.36239587]
[1734284720375,1.07049882,3913.0,3912.4,1.36239587]
[1734284720539,2.21567583,3912.9,3912.4,1.36239587]
[1734284720738,0.88626313,3912.8,3912.4,1.36239587]
[1734284720998,1.07049882,3913.0,3912.4,1.36239587]
[1734284721175,2.21567208,3912.9,3912.5,0.61708246]
[1734284721345,1.07049882,3913.0,3912.5,0.61708246]
[1734284721539,2.2156237,3912.9,3912.5,0.61708246]
[1734284721738,1.07049882,3913.0,3912.5,0.61708246]
[1734284721941,2.2156404,3912.9,3912.5,0.61708246]
[1734284722141,1.07049882,3913.0,3912.9,2.55564]
[1734284722442,1.07049882,3913.9,3913.4,2.55532]
[1734284722642,0.88604239,3913.9,3913.5,0.8014]
[1734284723284,1.07049882,3914.2,3913.5,0.8014]
[1734284723607,1.07049882,3914.3,3914.1,1.00344567]
[1734284723888,1.07049882,3914.5,3914.1,1.80484567]
[1734284724185,1.07049882,3914.7,3914.1,1.80484567]
[1734284724392,1.32727298,3914.6,3914.1,1.80484567]
[1734284724693,0.88484865,3914.5,3914.1,1.80484567]
[1734284724885,1.07049882,3914.7,3914.1,1.80484567]
[1734284725105,1.32726634,3914.6,3914.1,0.8014]
[1734284725400,0.7622,3915.0,3914.2,0.8014]
[1734284725401,1.07049882,3915.0,3914.2,0.8014]
[1734284725541,1.3265594,3914.9,3914.2,0.82694512]
[1734284725741,0.88437293,3914.8,3914.2,0.82694512]
[1734284726003,1.07049882,3915.0,3914.2,0.8014]
[1734284726201,1.15196301,3914.9,3914.2,0.8014]
[1734284726402,0.26759502,3914.9,3914.2,0.82694513]
[1734284726701,1.07049882,3915.1,3914.2,0.82694513]
[1734284727112,1.3258408,3915.0,3914.2,0.8014]
[1734284727405,1.07049882,3915.2,3914.2,0.8014]
[1734284727602,3.27923544,3915.2,3914.2,0.8014]
[1734284727907,2.20873662,3915.1,3914.2,0.8014]
[1734284728101,1.64154874,3915.0,3914.2,0.8014]
[1734284728308,0.75805409,3915.0,3914.2,0.8014]
[1734284728471,3.62465882,3915.2,3914.2,0.8014]
[1734284728677,2.20792328,3915.1,3914.2,0.8014]
[1734284728877,0.88316931,3915.0,3914.2,0.8014]
[1734284729078,3.62465882,3915.2,3914.2,0.8014]
[1734284729279,0.88294416,3915.1,3914.2,0.8014]
[1734284729917,0.7622,3914.8,3914.2,0.8014]
[1734284730217,3.31662,3914.8,3914.2,0.8014]
[1734284730860,2.55442,3914.8,3914.2,0.8014]
[1734284734075,2.55449,3914.7,3914.2,0.8014]
[1734284737177,2.55434,3915.0,3914.2,0.8014]
[1734284739418,2.55435,3914.9,3914.2,0.8014]
[1734284740610,2.55441,3914.8,3914.2,0.8014]
[1734284741077,0.26961141,3915.0,3914.2,0.8014]
[1734284741478,2.55434,3914.9,3914.2,0.8014]
[1734284742718,2.55441,3914.8,3914.2,0.8014]
[1734284747515,2.55441,3914.8,3914.2,0.98188457]
[1734284748122,2.55441,3914.8,3914.2,0.8014]
[1734284753015,2.6959041,3915.3,3914.2,0.8014]
[1734284753196,2.55427,3915.0,3914.2,0.8014]
[1734284754413,2.55427,3915.0,3914.3,0.7708]
[1734284755502,2.55415,3915.2,3914.3,0.7708]
[1734284756220,2.55421,3915.1,3914.3,0.7708]
[1734284756520,2.55421,3915.1,3914.3,1.77424567]
[1734284757075,2.55421,3915.1,3914.4,0.7775]
[1734284760774,0.1417741,3915.3,3914.4,0.7775]
[1734284760978,2.55434,3914.9,3914.4,0.7775]
[1734284763731,2.55434,3914.9,3914.7,0.01607503]
[1734284764505,2.5544,3914.8,3914.7,0.01607503]
[1734284765207,3.3755,3914.8,3914.7,0.01607503]
[1734284767136,4.26041208,3914.8,3914.7,0.01607503]
[1734284768267,6.65940052,3914.8,3914.7,0.01607503]
[1734284768910,4.7678017,3914.8,3914.7,0.01607503]
[1734284769116,5.73374159,3914.8,3914.7,0.01607503]
[1734284769520,7.33919295,3914.8,3914.7,0.01607503]
[1734284769923,7.3404906,3914.8,3914.7,0.01607503]
[1734284771058,7.5068675,3914.8,3914.7,0.01607503]
[1734284771297,10.45546931,3914.8,3914.7,0.01607503]
[1734284771575,8.3148675,3914.8,3914.7,0.01607503]
[1734284771979,9.31831317,3914.8,3914.7,0.01607503]
[1734284772138,12.86831317,3914.8,3914.7,5.03e-06]
[1734284772335,15.08328137,3914.8,3914.7,5.03e-06]
[1734284772574,18.29735752,3914.8,3914.7,5.03e-06]
[1734284774376,18.29540659,3914.8,3914.7,5.03e-06]
[1734284774580,14.0790398,3914.8,3914.7,5.03e-06]
[1734284774783,11.82582449,3914.8,3914.7,5.03e-06]
[1734284775988,8.82582449,3914.8,3914.7,5.03e-06]
[1734284776154,9.73027571,3914.8,3914.7,5.03e-06]
[1734284776337,8.82582449,3914.8,3914.7,5.03e-06]
[1734284776534,10.96658716,3914.8,3914.7,5.03e-06]
[1734284776992,10.00064727,3914.8,3914.7,5.03e-06]
[1734284777349,7.0518846,3914.8,3914.7,5.03e-06]
[1734284777879,6.8855171,3914.8,3914.7,5.03e-06]
[1734284778644,6.88405953,3914.8,3914.7,5.03e-06]
[1734284779499,4.76684588,3914.8,3914.7,5.03e-06]
[1734284779682,5.83704823,3914.8,3914.5,0.7836]
[1734284779854,0.88497835,3914.7,3914.5,0.7836]
[1734284780602,3.43947835,3914.7,3914.5,0.7836]
[1734284780887,2.5545,3914.7,3914.5,0.7836]
[1734284782066,2.5545,3914.7,3914.2,0.7836]
[1734284782299,3.43947428,3914.6,3914.2,0.7836]
[1734284782598,2.55454,3914.6,3914.2,0.7836]
[1734284784000,0.88496884,3914.5,3914.2,0.7836]
[1734284784296,2.55454,3914.6,3914.2,0.7836]
[1734284786089,3.62465235,3914.8,3914.2,0.7836]
[1734284786311,0.88490168,3914.7,3914.2,0.7836]
[1734284786686,1.07020235,3914.9,3914.2,0.7836]
[1734284787017,1.07020235,3914.9,3914.4,0.7836]
[1734284787334,0.88491875,3915.0,3914.4,0.7836]
[1734284787335,1.07020235,3915.0,3914.4,0.7836]
[1734284788309,0.88487547,3914.9,3914.4,0.7836]
[1734284788503,1.60546076,3915.2,3914.4,0.7836]
[1734284788702,2.55427,3915.0,3914.4,0.7836]
[1734284788913,2.21216315,3914.9,3914.4,0.7836]
[1734284789113,4.76651315,3914.9,3914.4,0.7836]
[1734284789314,2.21216315,3914.8,3914.4,0.7836]
[1734284789521,2.55435,3914.9,3914.4,0.7836]
[1734284789724,2.55447,3914.7,3914.4,0.7836]
[1734284790018,0.88490472,3914.6,3914.4,0.7836]
[1734284790613,3.43952205,3914.5,3913.5,0.7836]
[1734284790806,2.5546,3914.5,3913.7,0.7836]
[1734284792524,2.55447,3914.7,3913.7,0.7836]
[1734284792723,2.80529432,3914.6,3913.7,0.7836]
[1734284792930,2.5548,3914.2,3913.7,0.7836]
[1734284793596,2.1984584,3914.6,3913.7,0.7836]
[1734284793798,3.81789641,3914.5,3913.7,0.7836]
[1734284793988,2.55485,3914.2,3913.7,0.7836]
[1734284794806,2.55487,3914.1,3913.7,0.7836]
[1734284795404,2.55493,3914.0,3913.7,0.7836]
[1734284796904,1.60546076,3914.5,3913.7,0.7836]
[1734284797112,4.5068439,3914.5,3913.7,0.7836]
[1734284797494,2.21200203,3914.4,3913.7,0.7836]
[1734284797652,2.21200203,3914.3,3913.7,0.7836]
[1734284797854,0.68938111,3914.5,3913.7,0.7836]
[1734284798052,4.50667625,3914.5,3913.7,0.7836]
[1734284798350,2.55481,3914.2,3913.7,0.7836]
[1734284798717,1.84928022,3914.4,3913.7,0.7836]
[1734284798919,2.55487,3914.1,3913.7,0.7836]
[1734284799751,2.55474,3914.3,3913.7,0.7836]
[1734284800109,2.5548,3914.2,3913.7,0.7836]
[1734284802939,2.55467,3914.4,3913.7,0.7836]
[1734284803310,2.55456,3914.6,3913.8,0.95360457]
[1734284804954,2.55456,3914.6,3913.9,0.7749]
[1734284805580,1.06998022,3914.9,3913.9,0.7749]
[1734284805908,1.66418069,3914.8,3913.9,0.7749]
[1734284806209,1.66418069,3914.8,3913.8,0.17870457]
[1734284806210,0.88488095,3914.7,3914.1,0.7749]
[1734284806908,2.55441,3914.8,3914.1,0.7749]
[1734284807554,0.88492345,3914.7,3914.1,0.7749]
[1734284809152,0.88498552,3914.6,3914.1,0.7749]
[1734284809405,1.95496574,3914.6,3914.1,0.7749]
[1734284809601,3.28257159,3914.5,3914.1,0.7749]
[1734284809754,2.21259137,3914.4,3914.1,0.7749]
[1734284809950,0.88498552,3914.3,3913.4,1.3249]
[1734284810150,2.55467,3914.4,3913.5,0.63976828]
[1734284810401,0.88513432,3914.3,3913.5,0.63976828]
[1734284810571,0.88513432,3914.3,3913.6,0.7749]
[1734284810897,3.43988432,3914.3,3913.6,0.7749]
[1734284811056,2.55475,3914.3,3913.6,0.7749]
[1734284811258,2.55475,3914.3,3913.7,0.19646683]
[1734284811768,2.55496,3914.0,3913.6,0.7749]
[1734284815601,3.35656,3914.0,3913.2,0.7628]
[1734284815772,2.55501,3913.9,3913.3,0.85402934]
[1734284815972,0.8016,3914.0,3913.3,0.85402934]
[1734284816191,2.55506,3913.8,3913.3,0.85402934]
[1734284816423,2.55506,3913.8,3913.2,0.7628]
[1734284816424,1.00344567,3913.9,3912.9,1.06933709]
[1734284816595,3.2834225,3913.8,3912.7,0.7628]
[1734284816898,3.2834225,3913.7,3912.8,0.85432289]
[1734284817102,2.55533,3913.4,3912.7,0.7628]
[1734284817403,2.55533,3913.4,3912.7,0.98753988]
[1734284818506,2.55546,3913.2,3912.7,0.98753988]
[1734284818976,1.06998022,3913.6,3912.7,0.98753988]
[1734284819175,1.06998022,3913.6,3912.7,0.7628]
[1734284819176,2.55552,3913.1,3912.7,0.7628]
[1734284819706,2.55534,3913.4,3912.7,0.7628]
[1734284820919,3.62516022,3913.7,3912.7,0.7628]
[1734284821240,2.5554,3913.3,3912.7,0.7628]
[1734284822520,2.55545,3913.2,3912.7,0.7628]
[1734284823094,1.06998022,3913.6,3912.7,0.7628]
[1734284823290,0.7523,3913.4,3912.7,0.7628]
[1734284823530,2.5555,3913.2,3912.7,0.7628]
[1734284825342,2.55552,3913.1,3912.7,0.7628]
[1734284826339,2.55586,3912.6,3912.2,0.7697]
[1734284826851,2.55586,3912.6,3911.6,0.7697]
[1734284826852,2.556,3912.4,3911.6,0.7697]
[1734284827343,2.5561,3912.3,3911.6,0.7697]
[1734284828368,2.55578,3912.7,3911.6,0.7697]
[1734284828527,2.5561,3912.3,3911.6,0.7697]
[1734284829871,2.55592,3912.5,3911.6,0.7697]
[1734284830168,4.31135567,3913.0,3911.7,0.7606]
[1734284830169,3.82760558,3913.0,3911.7,0.7606]
[1734284830371,2.55585,3912.6,3911.7,1.19266557]
[1734284830671,2.55585,3912.6,3911.8,0.7606]
[1734284831224,0.7523,3913.0,3911.8,0.7606]